[Event "African Open (w)"]
[Site "followchess.com"]
[Date "2022.09.21"]
[Round "4"]
[White "Nkhoma, Desiderata"]
[Black "Abigail Karyah"]
[Result "0-1"]
[ECO "C41"]
[WhiteElo "1446"]
[BlackElo "1435"]
[PlyCount "144"]
[EventDate "2022.??.??"]
[TimeControl "5400+30"]

1. e4 {[%emt 0:00:05]} e5 {[%emt 0:00:05]} 2. Nf3 {[%emt 0:00:26]} d6 {[%emt 0:
00:10]} 3. h3 {[%emt 0:02:15]} Nf6 {[%emt 0:00:08]} 4. Nc3 {[%emt 0:00:17]} Be7
{[%emt 0:00:23]} 5. Bc4 {[%emt 0:00:50]} h6 {[%emt 0:00:11]} 6. O-O {[%emt 0:
01:33]} O-O {[%emt 0:00:08]} 7. d4 {[%emt 0:01:32]} exd4 {[%emt 0:00:47]} 8.
Nxd4 {[%emt 0:00:17]} Re8 {[%emt 0:00:41]} 9. Be3 Nbd7 {[%emt 0:01:52]} 10. Nf5
{[%emt 0:11:03]} Bf8 {[%emt 0:01:07]} 11. Ng3 {[%emt 0:08:16]} Ne5 {[%emt 0:00:
54]} 12. Bb3 {[%emt 0:00:10]} Be6 {[%emt 0:03:42]} 13. Bxe6 {[%emt 0:04:22]}
fxe6 {[%emt 0:00:15]} 14. Nh5 {[%emt 0:01:44]} Nc4 {[%emt 0:03:22]} 15. Bc1 {
[%emt 0:05:09]} e5 {[%emt 0:01:43]} 16. Nxf6+ Qxf6 {[%emt 0:00:12]} 17. Qd5+
Qf7 {[%emt 0:00:42]} 18. Qxb7 {[%emt 0:08:21]} Reb8 {[%emt 0:04:34]} 19. Qd5 {
[%emt 0:01:49]} Nxb2 {[%emt 0:04:24]} 20. Qxf7+ {[%emt 0:05:21]} Kxf7 {[%emt 0:
00:15]} 21. Nd5 {[%emt 0:00:44]} Rb7 {[%emt 0:01:34]} 22. Bxb2 {[%emt 0:07:40]}
Rxb2 {[%emt 0:00:09]} 23. Nxc7 {[%emt 0:00:50]} Rc8 {[%emt 0:00:09]} 24. Nd5 {
[%emt 0:00:26]} Rcxc2 {[%emt 0:02:27]} 25. a3 {[%emt 0:00:56]} Ra2 {[%emt 0:01:
38]} 26. Nb4 {[%emt 0:00:45]} Rxa1 {[%emt 0:00:30]} 27. Rxa1 {[%emt 0:00:28]}
Rc4 {[%emt 0:01:19]} 28. f3 {[%emt 0:00:42]} Ke6 {[%emt 0:00:20]} 29. Nd5 {
[%emt 0:00:53]} Be7 {[%emt 0:01:08]} 30. a4 {[%emt 0:00:48]} Bd8 {[%emt 0:00:
44]} 31. a5 {[%emt 0:06:50]} a6 {[%emt 0:00:52]} 32. Ra2 {[%emt 0:01:55]} Rc5 {
[%emt 0:02:18]} 33. Nb6 {[%emt 0:01:11]} Rb5 {[%emt 0:02:04]} 34. Kf2 {[%emt 0:
04:14]} Bxb6+ 35. axb6 {[%emt 0:00:24]} Rxb6 {[%emt 0:00:31]} 36. Ra5 {[%emt 0:
02:29]} Kd7 {[%emt 0:00:20]} 37. h4 {[%emt 0:03:31]} g6 {[%emt 0:01:12]} 38.
Kg3 {[%emt 0:02:05]} h5 {[%emt 0:01:06]} 39. Ra3 {[%emt 0:01:18]} Ke6 {[%emt 0:
00:33]} 40. f4 {[%emt 0:00:40]} exf4+ 41. Kxf4 {[%emt 0:00:30]} d5 {[%emt 0:03:
03]} 42. exd5+ Kxd5 {[%emt 0:00:30]} 43. Kg5 {[%emt 0:01:00]} Kc4 {[%emt 0:03:
09]} 44. Ra5 {[%emt 0:18:07]} Kb4 {[%emt 0:03:23]} 45. Re5 {[%emt 0:00:32]} a5
{[%emt 0:00:46]} 46. Re4+ Kc3 {[%emt 0:00:00]} 47. Ra4 {[%emt 0:00:00]} Ra6 {
[%emt 0:00:00]} 48. g4 {[%emt 0:00:00]} hxg4 {[%emt 0:00:00]} 49. Kxg4 {
[%emt 0:00:00]} Kb3 {[%emt 0:00:00]} 50. Rf4 {[%emt 0:00:00]} a4 {[%emt 0:00:
00]} 51. Rf3+ {[%emt 0:00:00]} Kc2 {[%emt 0:00:00]} 52. Rf2+ {[%emt 0:00:00]}
Kd1 {[%emt 0:00:00]} 53. h5 {[%emt 0:00:00]} gxh5+ {[%emt 0:00:00]} 54. Kxh5 {
[%emt 0:00:00]} a3 {[%emt 0:00:00]} 55. Ra2 {[%emt 0:00:00]} Ra4 {[%emt 0:00:
00]} 56. Kg5 {[%emt 0:00:00]} Kc1 {[%emt 0:00:00]} 57. Kf5 {[%emt 0:00:00]} Kb1
{[%emt 0:00:00]} 58. Rxa3 {[%emt 0:00:00]} Rxa3 {[%emt 0:00:00]} 59. Ke5 {
[%emt 0:00:00]} Rd3 {[%emt 0:00:00]} 60. Ke4 {[%emt 0:00:00]} Kc2 {[%emt 0:00:
00]} 61. Ke5 {[%emt 0:00:00]} Kc3 {[%emt 0:00:00]} 62. Ke6 {[%emt 0:00:00]} Kc4
{[%emt 0:00:00]} 63. Ke5 {[%emt 0:00:00]} Rd4 {[%emt 0:00:00]} 64. Ke6 {
[%emt 0:00:00]} Rd5 {[%emt 0:00:00]} 65. Ke7 {[%emt 0:00:00]} Kc5 {[%emt 0:00:
00]} 66. Ke6 {[%emt 0:00:00]} Kc6 {[%emt 0:00:00]} 67. Kf6 {[%emt 0:00:00]} Kd6
68. Kf7 {[%emt 0:00:00]} Re5 {[%emt 0:00:00]} 69. Kf6 {[%emt 0:00:00]} Kd5 {
[%emt 0:00:00]} 70. Kg6 {[%emt 0:00:00]} Ke6 {[%emt 0:00:00]} 71. Kh6 {[%emt 0:
00:00]} Kf6 {[%emt 0:00:00]} 72. Kh7 {[%emt 0:00:00]} Re8 {[%emt 0:00:00]} 0-1

[Event "African Open (w)"]
[Site "followchess.com"]
[Date "2022.09.21"]
[Round "4"]
[White "Michael Bridget"]
[Black "Oyelese, Mayomi"]
[Result "1-0"]
[ECO "B55"]
[WhiteElo "1800"]
[BlackElo "1677"]
[PlyCount "81"]
[EventDate "2022.??.??"]
[TimeControl "5400+30"]

1. e4 {[%emt 0:00:05]} c5 {[%emt 0:00:01]} 2. Nf3 {[%emt 0:00:23]} d6 {[%emt 0:
00:02]} 3. d4 {[%emt 0:00:37]} cxd4 {[%emt 0:00:01]} 4. Nxd4 {[%emt 0:00:09]}
Nf6 {[%emt 0:00:01]} 5. f3 {[%emt 0:01:14]} a6 {[%emt 0:00:30]} 6. c4 {[%emt 0:
00:29]} Nbd7 {[%emt 0:00:46]} 7. Be2 {[%emt 0:00:42]} Qc7 {[%emt 0:00:12]} 8.
O-O {[%emt 0:00:35]} e6 {[%emt 0:03:48]} 9. b3 {[%emt 0:01:54]} Be7 {[%emt 0:
00:11]} 10. Bb2 {[%emt 0:00:28]} O-O {[%emt 0:02:25]} 11. Nc3 {[%emt 0:00:38]}
Rd8 {[%emt 0:02:21]} 12. Kh1 {[%emt 0:00:40]} b6 {[%emt 0:00:13]} 13. Qe1 {
[%emt 0:04:07]} Bb7 {[%emt 0:01:15]} 14. Qg3 {[%emt 0:00:36]} Rac8 {[%emt 0:02:
13]} 15. Rac1 {[%emt 0:00:47]} Qc5 {[%emt 0:03:46]} 16. Rfd1 {[%emt 0:01:53]}
Nf8 {[%emt 0:03:43]} 17. Nc2 {[%emt 0:06:33]} Ng6 {[%emt 0:03:24]} 18. Na4 {
[%emt 0:08:42]} Qc6 {[%emt 0:00:57]} 19. Nb4 {[%emt 0:02:50]} Qc7 {[%emt 0:00:
41]} 20. Qf2 {[%emt 0:01:29]} Nd7 {[%emt 0:00:26]} 21. Nc2 {[%emt 0:14:31]} Nc5
{[%emt 0:03:20]} 22. Nc3 {[%emt 0:00:54]} Bh4 {[%emt 0:02:59]} 23. g3 {[%emt 0:
01:59]} Bf6 {[%emt 0:00:35]} 24. Ne3 {[%emt 0:01:35]} Ne5 {[%emt 0:04:27]} 25.
b4 {[%emt 0:04:32]} Ncd7 {[%emt 0:00:39]} 26. a3 {[%emt 0:01:17]} Nc6 {[%emt 0:
01:55]} 27. Ng4 {[%emt 0:00:44]} Be7 {[%emt 0:03:55]} 28. Nd5 {[%emt 0:03:44]}
Qb8 {[%emt 0:08:59]} 29. Nxb6 {[%emt 0:01:08]} Nxb6 {[%emt 0:00:43]} 30. Qxb6 {
[%emt 0:00:06]} f5 {[%emt 0:00:24]} 31. exf5 {[%emt 0:08:03]} Ne5 {[%emt 0:01:
05]} 32. Qd4 {[%emt 0:01:18]} exf5 {[%emt 0:04:30]} 33. Nxe5 {[%emt 0:02:14]}
Bf6 {[%emt 0:04:41]} 34. Qf4 {[%emt 0:03:58]} dxe5 {[%emt 0:07:22]} 35. Qxf5 {
[%emt 0:00:39]} Rxd1+ 36. Rxd1 {[%emt 0:00:53]} e4 {[%emt 0:07:15]} 37. Bxf6 {
[%emt 0:01:22]} Rf8 {[%emt 0:00:16]} 38. Qe6+ Kh8 {[%emt 0:00:10]} 39. Bxg7+
Kxg7 {[%emt 0:00:11]} 40. Rd7+ Kh8 {[%emt 0:00:36]} 41. Qe7 {[%emt 0:07:29]}
1-0

[Event "African Open (w)"]
[Site "followchess.com"]
[Date "2022.09.21"]
[Round "4"]
[White "Yavo Tchetche, Marie"]
[Black "OLORUNTOLA, Oluwatobiloba"]
[Result "1/2-1/2"]
[ECO "D02"]
[WhiteElo "1363"]
[BlackElo "1918"]
[PlyCount "111"]
[EventDate "2022.??.??"]
[TimeControl "5400+30"]

1. d4 {[%emt 0:00:32]} d5 {[%emt 0:00:04]} 2. Nf3 {[%emt 0:00:44]} Nf6 {
[%emt 0:00:15]} 3. g3 {[%emt 0:00:33]} e6 {[%emt 0:00:18]} 4. Bg2 {[%emt 0:01:
48]} c5 {[%emt 0:00:12]} 5. e3 {[%emt 0:00:55]} Nc6 {[%emt 0:00:14]} 6. a3 {
[%emt 0:02:15]} Be7 {[%emt 0:01:45]} 7. Nbd2 {[%emt 0:01:05]} Qc7 {[%emt 0:03:
12]} 8. c4 {[%emt 0:00:48]} cxd4 {[%emt 0:01:19]} 9. exd4 {[%emt 0:01:24]} b6 {
[%emt 0:03:13]} 10. Qc2 {[%emt 0:01:46]} Bb7 {[%emt 0:00:46]} 11. O-O {[%emt 0:
01:55]} dxc4 {[%emt 0:01:58]} 12. Qxc4 {[%emt 0:04:10]} Rc8 {[%emt 0:03:33]}
13. Re1 {[%emt 0:03:19]} O-O {[%emt 0:00:36]} 14. Nb3 {[%emt 0:05:18]} Nb8 {
[%emt 0:12:21]} 15. Qxc7 {[%emt 0:05:59]} Rxc7 {[%emt 0:00:01]} 16. Bd2 {
[%emt 0:00:21]} Bd5 {[%emt 0:02:43]} 17. Rac1 {[%emt 0:01:49]} Rxc1 {[%emt 0:
03:15]} 18. Nxc1 {[%emt 0:00:22]} Rc8 {[%emt 0:00:03]} 19. Nd3 {[%emt 0:00:52]}
Ne4 {[%emt 0:12:18]} 20. Rc1 {[%emt 0:00:30]} Rxc1+ {[%emt 0:03:51]} 21. Bxc1 {
[%emt 0:01:37]} Nd7 {[%emt 0:09:03]} 22. Nde5 {[%emt 0:17:12]} Nxe5 {[%emt 0:
04:02]} 23. Nxe5 {[%emt 0:00:36]} f6 {[%emt 0:03:11]} 24. Nf3 {[%emt 0:01:18]}
Nd6 {[%emt 0:04:21]} 25. Nd2 {[%emt 0:03:33]} Bxg2 {[%emt 0:05:26]} 26. Kxg2 {
[%emt 0:02:07]} Kf8 {[%emt 0:00:13]} 27. a4 {[%emt 0:02:01]} Ke8 {[%emt 0:01:
35]} 28. b3 {[%emt 0:00:57]} Kd7 {[%emt 0:00:53]} 29. Kf3 {[%emt 0:01:30]} Kc6
{[%emt 0:00:40]} 30. Nc4 {[%emt 0:02:46]} Kd5 {[%emt 0:01:07]} 31. Nxd6 {
[%emt 0:00:54]} Bxd6 {[%emt 0:00:01]} 32. Be3 {[%emt 0:00:23]} a6 {[%emt 0:00:
50]} 33. h4 {[%emt 0:01:27]} Bb4 {[%emt 0:01:54]} 34. Ke2 {[%emt 0:01:05]} Be7
{[%emt 0:03:12]} 35. Kd3 {[%emt 0:02:31]} g5 {[%emt 0:00:39]} 36. hxg5 {
[%emt 0:00:23]} fxg5 {[%emt 0:00:08]} 37. g4 {[%emt 0:00:16]} b5 {[%emt 0:02:
38]} 38. axb5 {[%emt 0:01:31]} axb5 {[%emt 0:00:01]} 39. f4 {[%emt 0:01:41]}
gxf4 {[%emt 0:01:16]} 40. Bxf4 {[%emt 0:00:33]} Bf6 {[%emt 0:00:29]} 41. Be3 {
[%emt 0:00:13]} Bd8 {[%emt 0:10:24]} 42. Bf4 {[%emt 0:00:39]} Bf6 {[%emt 0:02:
13]} 43. Be3 {[%emt 0:00:24]} Bg7 {[%emt 0:01:11]} 44. Bf2 {[%emt 0:00:31]} Bf6
{[%emt 0:00:00]} 45. Be3 {[%emt 0:00:00]} Be7 {[%emt 0:00:00]} 46. Bf4 {
[%emt 0:00:00]} Bf6 {[%emt 0:00:00]} 47. Be3 {[%emt 0:00:00]} e5 {[%emt 0:00:
00]} 48. dxe5 {[%emt 0:00:00]} Bxe5 {[%emt 0:00:00]} 49. Bf2 {[%emt 0:00:00]}
Bd6 {[%emt 0:00:00]} 50. Bd4 {[%emt 0:00:00]} Be5 {[%emt 0:00:00]} 51. Be3 {
[%emt 0:00:00]} Bf6 {[%emt 0:00:00]} 52. Bc1 {[%emt 0:00:00]} Ba1 {[%emt 0:00:
00]} 53. Bd2 {[%emt 0:00:00]} Ke5 {[%emt 0:00:00]} 54. Be3 {[%emt 0:00:00]} Bb2
{[%emt 0:00:00]} 55. Bd2 {[%emt 0:00:00]} Kd5 {[%emt 0:00:00]} 56. g5 1/2-1/2

[Event "African Open (w)"]
[Site "followchess.com"]
[Date "2022.09.21"]
[Round "4"]
[White "Mbatha, Constance"]
[Black "Pires, Luzia"]
[Result "1-0"]
[ECO "B50"]
[WhiteElo "1613"]
[BlackElo "1839"]
[PlyCount "105"]
[EventDate "2022.??.??"]
[TimeControl "5400+30"]

1. e4 {[%emt 0:00:03]} c5 {[%emt 0:00:21]} 2. Nf3 {[%emt 0:00:08]} d6 {[%emt 0:
00:06]} 3. Nc3 {[%emt 0:00:11]} a6 {[%emt 0:00:23]} 4. Be2 {[%emt 0:00:42]} Nf6
{[%emt 0:00:16]} 5. b3 {[%emt 0:00:38]} g6 {[%emt 0:00:12]} 6. Bb2 {[%emt 0:00:
04]} Bg7 {[%emt 0:00:08]} 7. Rb1 {[%emt 0:01:00]} O-O {[%emt 0:00:26]} 8. O-O {
[%emt 0:00:02]} Nc6 {[%emt 0:03:24]} 9. d3 {[%emt 0:02:57]} Qc7 {[%emt 0:10:31]
} 10. h3 {[%emt 0:01:23]} Bd7 {[%emt 0:00:58]} 11. a3 {[%emt 0:01:44]} e6 {
[%emt 0:01:42]} 12. Re1 {[%emt 0:03:25]} Rad8 {[%emt 0:05:59]} 13. Bf1 {
[%emt 0:00:33]} e5 {[%emt 0:03:50]} 14. Ne2 {[%emt 0:08:40]} Nh5 {[%emt 0:01:
34]} 15. Bc1 {[%emt 0:02:11]} f5 {[%emt 0:00:20]} 16. exf5 {[%emt 0:01:07]}
gxf5 {[%emt 0:00:02]} 17. Ng3 {[%emt 0:01:46]} Nf6 {[%emt 0:02:11]} 18. Nh2 {
[%emt 0:01:18]} f4 {[%emt 0:00:39]} 19. Ne4 {[%emt 0:01:20]} Nxe4 {[%emt 0:05:
25]} 20. dxe4 {[%emt 0:00:05]} Rf6 {[%emt 0:00:28]} 21. Kh1 {[%emt 0:01:07]}
Rdf8 {[%emt 0:00:59]} 22. Nf3 {[%emt 0:00:41]} Bh6 {[%emt 0:00:48]} 23. Nh2 {
[%emt 0:01:23]} Rg6 {[%emt 0:02:24]} 24. Be2 {[%emt 0:02:56]} Bc8 {[%emt 0:02:
44]} 25. c3 {[%emt 0:01:25]} Qe7 {[%emt 0:04:14]} 26. Bg4 {[%emt 0:09:11]} Qh4
{[%emt 0:03:52]} 27. Bxc8 {[%emt 0:03:35]} Rxc8 {[%emt 0:00:02]} 28. f3 {
[%emt 0:04:37]} Kh8 {[%emt 0:01:04]} 29. Bd2 {[%emt 0:01:09]} Rcg8 {[%emt 0:01:
52]} 30. Rg1 {[%emt 0:01:20]} Qe7 {[%emt 0:03:06]} 31. Be1 {[%emt 0:02:31]} Bg5
{[%emt 0:00:42]} 32. Bf2 {[%emt 0:01:20]} Bh4 {[%emt 0:01:04]} 33. Qe1 {
[%emt 0:01:16]} Bg3 {[%emt 0:04:04]} 34. Nf1 {[%emt 0:02:44]} Nd8 {[%emt 0:02:
56]} 35. Bxg3 {[%emt 0:04:07]} fxg3 {[%emt 0:01:59]} 36. Ne3 {[%emt 0:00:15]}
Ne6 {[%emt 0:04:12]} 37. Rb2 {[%emt 0:03:57]} Nf4 {[%emt 0:00:49]} 38. Nd5 {
[%emt 0:01:32]} Qe6 {[%emt 0:07:44]} 39. Nxf4 {[%emt 0:01:46]} exf4 {[%emt 0:
00:01]} 40. Rf1 {[%emt 0:00:46]} Rh6 {[%emt 0:00:11]} 41. Kg1 {[%emt 0:00:22]}
Rg5 {[%emt 0:02:45]} 42. Qd2 {[%emt 0:00:23]} Qe5 {[%emt 0:02:31]} 43. Rc1 {
[%emt 0:01:09]} Re6 {[%emt 0:01:09]} 44. c4 {[%emt 0:01:33]} Rg7 {[%emt 0:01:
25]} 45. Rd1 {[%emt 0:01:00]} Rge7 {[%emt 0:00:51]} 46. Rc2 {[%emt 0:00:34]}
Kg7 {[%emt 0:01:15]} 47. Qc1 {[%emt 0:00:51]} Qf6 {[%emt 0:00:42]} 48. Rcd2 {
[%emt 0:00:42]} Rd7 {[%emt 0:00:45]} 49. Rd5 {[%emt 0:00:10]} Re5 {[%emt 0:00:
30]} 50. Rxe5 {[%emt 0:01:49]} Qxe5 {[%emt 0:00:02]} 51. Rd5 {[%emt 0:00:09]}
Qf6 {[%emt 0:01:21]} 52. Kh1 {[%emt 0:02:40]} Rf7 {[%emt 0:04:22]} 53. Qd1 {
[%emt 0:01:33]} 1-0

[Event "African Open (w)"]
[Site "followchess.com"]
[Date "2022.09.21"]
[Round "4"]
[White "Marochkina, Nadezhda Valerevna"]
[Black "Ampaire Shakira"]
[Result "0-1"]
[ECO "D00"]
[WhiteElo "1689"]
[BlackElo "1657"]
[PlyCount "110"]
[EventDate "2022.??.??"]
[TimeControl "5400+30"]

1. d4 {[%emt 0:00:02]} d5 {[%emt 0:02:00]} 2. Bf4 {[%emt 0:00:27]} e6 {[%emt 0:
01:09]} 3. e3 {[%emt 0:00:25]} Bd6 {[%emt 0:00:18]} 4. Bxd6 {[%emt 0:00:42]}
Qxd6 {[%emt 0:00:07]} 5. Nd2 {[%emt 0:01:38]} c5 {[%emt 0:02:25]} 6. Ngf3 {
[%emt 0:00:38]} Nc6 7. Be2 {[%emt 0:03:31]} Nf6 {[%emt 0:02:34]} 8. O-O {
[%emt 0:01:19]} O-O {[%emt 0:04:35]} 9. dxc5 {[%emt 0:04:10]} Qxc5 {[%emt 0:00:
23]} 10. c4 {[%emt 0:01:07]} dxc4 {[%emt 0:06:45]} 11. Nxc4 {[%emt 0:02:13]}
Rd8 {[%emt 0:04:38]} 12. Qb3 {[%emt 0:02:02]} b6 13. Rac1 {[%emt 0:03:20]} Na5
{[%emt 0:12:34]} 14. Nxa5 {[%emt 0:01:15]} Qxa5 {[%emt 0:00:07]} 15. Nd4 {
[%emt 0:02:52]} Bb7 {[%emt 0:02:28]} 16. Rc7 {[%emt 0:10:09]} Bd5 17. Qa3 {
[%emt 0:19:27]} Qxa3 {[%emt 0:05:44]} 18. bxa3 {[%emt 0:00:07]} Bxa2 {[%emt 0:
00:25]} 19. Nc6 {[%emt 0:01:27]} Rd7 {[%emt 0:00:41]} 20. Rxd7 {[%emt 0:01:17]}
Nxd7 {[%emt 0:00:11]} 21. Rd1 {[%emt 0:00:42]} Bd5 {[%emt 0:00:53]} 22. Ne7+
Kf8 {[%emt 0:00:17]} 23. Nxd5 {[%emt 0:00:52]} exd5 {[%emt 0:01:03]} 24. Rxd5 {
[%emt 0:00:40]} Ke7 {[%emt 0:00:18]} 25. Bf3 {[%emt 0:01:48]} Rc8 {[%emt 0:00:
36]} 26. Rd1 {[%emt 0:01:40]} Rc2 {[%emt 0:00:59]} 27. Kf1 {[%emt 0:03:42]} Ra2
{[%emt 0:00:16]} 28. Rd3 {[%emt 0:10:46]} Ne5 {[%emt 0:02:12]} 29. Rc3 {
[%emt 0:01:05]} Nxf3 {[%emt 0:00:28]} 30. gxf3 {[%emt 0:00:05]} Kd6 {[%emt 0:
00:38]} 31. h4 {[%emt 0:02:04]} a5 {[%emt 0:02:54]} 32. Kg2 {[%emt 0:02:19]} b5
{[%emt 0:00:19]} 33. f4 {[%emt 0:02:41]} b4 {[%emt 0:01:39]} 34. axb4 {[%emt 0:
00:07]} axb4 {[%emt 0:00:10]} 35. Rd3+ Kc6 {[%emt 0:01:27]} 36. Rd8 {[%emt 0:
06:15]} Ra7 {[%emt 0:00:37]} 37. Rb8 {[%emt 0:03:21]} Rb7 {[%emt 0:00:25]} 38.
Rc8+ Kb5 {[%emt 0:00:30]} 39. Kf3 {[%emt 0:04:16]} b3 {[%emt 0:01:12]} 40. Rc1
{[%emt 0:00:09]} b2 {[%emt 0:00:44]} 41. Rb1 {[%emt 0:00:03]} Kc4 {[%emt 0:00:
16]} 42. Ke2 {[%emt 0:00:13]} Kc3 {[%emt 0:00:23]} 43. Kd1 {[%emt 0:00:25]}
Rd7+ 44. Ke2 {[%emt 0:00:36]} Kc2 {[%emt 0:01:13]} 45. Rxb2+ Kxb2 {[%emt 0:00:
07]} 46. f5 {[%emt 0:00:26]} h5 {[%emt 0:00:47]} 47. e4 {[%emt 0:00:08]} f6 {
[%emt 0:00:38]} 48. f4 {[%emt 0:00:15]} Kc3 {[%emt 0:00:32]} 49. e5 {[%emt 0:
00:18]} Kd4 {[%emt 0:02:33]} 50. e6 {[%emt 0:00:20]} Rc7 {[%emt 0:00:40]} 51.
Kf3 {[%emt 0:00:39]} Kd3 {[%emt 0:00:21]} 52. Kf2 {[%emt 0:00:11]} Ke4 {
[%emt 0:00:14]} 53. Kg3 {[%emt 0:00:05]} Ke3 {[%emt 0:01:04]} 54. Kg2 {[%emt 0:
00:12]} Kxf4 {[%emt 0:00:09]} 55. Kf2 {[%emt 0:00:10]} Kxf5 {[%emt 0:00:26]}
0-1

[Event "African Open (w)"]
[Site "followchess.com"]
[Date "2022.09.21"]
[Round "4"]
[White "Likando Namakau"]
[Black "Pelomoh Jessica"]
[Result "1-0"]
[ECO "A46"]
[WhiteElo "1527"]
[BlackElo "1904"]
[PlyCount "99"]
[EventDate "2022.??.??"]
[TimeControl "5400+30"]

1. d4 {[%emt 0:00:15]} Nf6 {[%emt 0:00:29]} 2. Bg5 {[%emt 0:00:43]} e6 {
[%emt 0:01:52]} 3. Nf3 {[%emt 0:03:44]} Be7 {[%emt 0:00:04]} 4. e3 {[%emt 0:01:
54]} b6 {[%emt 0:00:23]} 5. Bd3 {[%emt 0:01:39]} Bb7 {[%emt 0:00:11]} 6. Nc3 {
[%emt 0:01:29]} O-O {[%emt 0:00:33]} 7. O-O {[%emt 0:00:35]} d6 {[%emt 0:01:48]
} 8. Qe2 {[%emt 0:05:41]} Nbd7 {[%emt 0:00:05]} 9. Rad1 {[%emt 0:01:10]} h6 {
[%emt 0:00:25]} 10. Bh4 {[%emt 0:02:41]} Re8 {[%emt 0:04:22]} 11. e4 {[%emt 0:
02:50]} d5 {[%emt 0:15:43]} 12. e5 {[%emt 0:02:24]} Ne4 {[%emt 0:01:17]} 13.
Bxe7 {[%emt 0:01:32]} Nxc3 {[%emt 0:00:45]} 14. bxc3 {[%emt 0:14:53]} Qxe7 {
[%emt 0:00:03]} 15. c4 {[%emt 0:00:46]} c5 {[%emt 0:02:47]} 16. c3 {[%emt 0:06:
36]} Rac8 {[%emt 0:00:40]} 17. Rc1 {[%emt 0:02:53]} dxc4 {[%emt 0:03:24]} 18.
Bxc4 {[%emt 0:00:51]} cxd4 {[%emt 0:01:11]} 19. cxd4 {[%emt 0:00:50]} Qb4 {
[%emt 0:09:45]} 20. Bb3 {[%emt 0:04:16]} Rxc1 {[%emt 0:11:05]} 21. Rxc1 {
[%emt 0:00:30]} Bxf3 {[%emt 0:02:11]} 22. Qxf3 {[%emt 0:00:33]} Qxd4 {[%emt 0:
08:48]} 23. Qb7 {[%emt 0:05:51]} Nxe5 {[%emt 0:00:51]} 24. Qxa7 {[%emt 0:00:21]
} Qf4 {[%emt 0:02:19]} 25. Qc7 {[%emt 0:13:32]} Nd3 {[%emt 0:02:24]} 26. Qxf4 {
[%emt 0:00:13]} Nxf4 {[%emt 0:00:02]} 27. Rc4 {[%emt 0:00:43]} Nd5 {[%emt 0:01:
21]} 28. Rc6 {[%emt 0:03:12]} Ra8 {[%emt 0:00:29]} 29. Kf1 {[%emt 0:00:53]} Kf8
{[%emt 0:00:07]} 30. Bxd5 {[%emt 0:06:36]} exd5 {[%emt 0:00:08]} 31. Rxb6 {
[%emt 0:00:20]} Rxa2 {[%emt 0:00:10]} 32. Rb7 {[%emt 0:01:54]} Ke8 {[%emt 0:01:
06]} 33. h3 {[%emt 0:00:41]} h5 {[%emt 0:01:02]} 34. Ke1 {[%emt 0:00:11]} h4 {
[%emt 0:00:13]} 35. Rb5 {[%emt 0:00:09]} Ra1+ 36. Ke2 {[%emt 0:01:15]} Rg1 {
[%emt 0:05:20]} 37. Rxd5 {[%emt 0:02:35]} Rxg2 {[%emt 0:00:20]} 38. Rd4 {
[%emt 0:01:32]} g5 {[%emt 0:00:07]} 39. Rd3 {[%emt 0:01:21]} Ke7 {[%emt 0:01:
05]} 40. Kf1 {[%emt 0:00:31]} Rh2 {[%emt 0:02:35]} 41. Kg1 {[%emt 0:00:36]}
Rxh3 {[%emt 0:00:31]} 42. Rxh3 {[%emt 0:00:15]} Ke6 {[%emt 0:01:03]} 43. f4 {
[%emt 0:02:37]} f6 {[%emt 0:00:14]} 44. fxg5 {[%emt 0:00:11]} fxg5 {[%emt 0:00:
01]} 45. Rf3 {[%emt 0:01:04]} Ke5 {[%emt 0:00:08]} 46. Rf8 {[%emt 0:00:35]} Ke4
{[%emt 0:05:26]} 47. Kg2 {[%emt 0:00:36]} g4 {[%emt 0:00:04]} 48. Rh8 {[%emt 0:
00:49]} h3+ {[%emt 0:00:45]} 49. Kg3 {[%emt 0:00:16]} Kf5 {[%emt 0:00:07]} 50.
Rg8 {[%emt 0:00:42]} 1-0

[Event "African Open (w)"]
[Site "followchess.com"]
[Date "2022.09.21"]
[Round "4"]
[White "Laubscher, Anzel"]
[Black "Phiri Bertha"]
[Result "1-0"]
[ECO "C00"]
[WhiteElo "1705"]
[BlackElo "1584"]
[PlyCount "62"]
[EventDate "2022.??.??"]
[TimeControl "5400+30"]

1. e4 {[%emt 0:00:02]} e6 {[%emt 0:00:11]} 2. d3 {[%emt 0:00:10]} d5 {[%emt 0:
00:28]} 3. Nd2 {[%emt 0:00:08]} g6 {[%emt 0:04:06]} 4. Ngf3 {[%emt 0:00:21]}
Bg7 {[%emt 0:00:08]} 5. g3 {[%emt 0:00:23]} Ne7 {[%emt 0:02:04]} 6. Bg2 {
[%emt 0:00:41]} O-O {[%emt 0:03:29]} 7. O-O {[%emt 0:00:44]} b6 {[%emt 0:01:07]
} 8. Re1 {[%emt 0:02:36]} Bb7 {[%emt 0:00:23]} 9. e5 {[%emt 0:01:37]} c5 {
[%emt 0:00:11]} 10. c3 {[%emt 0:03:24]} Qc7 {[%emt 0:01:08]} 11. Nf1 {[%emt 0:
03:13]} Nbc6 {[%emt 0:01:52]} 12. Bf4 {[%emt 0:02:24]} Rfd8 {[%emt 0:01:01]}
13. Qd2 {[%emt 0:05:01]} Rd7 {[%emt 0:04:55]} 14. h4 {[%emt 0:01:32]} d4 {
[%emt 0:01:24]} 15. c4 {[%emt 0:01:10]} Rb8 {[%emt 0:05:06]} 16. N1h2 {[%emt 0:
06:53]} Kh8 {[%emt 0:04:32]} 17. Ng4 {[%emt 0:03:44]} Qd8 {[%emt 0:06:16]} 18.
Nf6 {[%emt 0:03:47]} Rc7 {[%emt 0:00:10]} 19. Ng5 {[%emt 0:09:05]} Ng8 {
[%emt 0:00:27]} 20. Ngxh7 {[%emt 0:08:05]} Bxf6 {[%emt 0:01:16]} 21. Nxf6 {
[%emt 0:06:07]} Qf8 {[%emt 0:03:44]} 22. Bg5 {[%emt 0:08:39]} Nce7 {[%emt 0:04:
02]} 23. Bxb7 {[%emt 0:02:48]} Rcxb7 {[%emt 0:00:20]} 24. Kg2 {[%emt 0:00:56]}
Qc8 {[%emt 0:17:05]} 25. Nxg8 {[%emt 0:06:42]} Kxg8 {[%emt 0:05:15]} 26. Bf6 {
[%emt 0:03:41]} Kh7 {[%emt 0:14:17]} 27. Qg5 {[%emt 0:06:56]} Rd7 {[%emt 0:13:
35]} 28. Bxe7 {[%emt 0:06:03]} Qb7+ {[%emt 0:00:07]} 29. Re4 {[%emt 0:00:43]}
Rxe7 {[%emt 0:00:09]} 30. h5 {[%emt 0:00:57]} Rh8 {[%emt 0:01:29]} 31. hxg6+ {
[%emt 0:05:11]} Kg8 {[%emt 0:00:00]} 1-0

[Event "African Open (w)"]
[Site "followchess.com"]
[Date "2022.09.21"]
[Round "4"]
[White "Caxita, Esperanca"]
[Black "Ayemou Mazan Emmanuela Esther"]
[Result "1-0"]
[ECO "C53"]
[WhiteElo "1961"]
[BlackElo "1523"]
[PlyCount "61"]
[EventDate "2022.??.??"]
[TimeControl "5400+30"]

1. e4 {[%emt 0:00:04]} e5 {[%emt 0:00:26]} 2. Nf3 {[%emt 0:00:07]} Nc6 {
[%emt 0:00:22]} 3. Bc4 {[%emt 0:00:11]} Bc5 {[%emt 0:00:33]} 4. c3 {[%emt 0:00:
14]} Nf6 {[%emt 0:00:50]} 5. d3 {[%emt 0:00:12]} h6 {[%emt 0:00:46]} 6. O-O {
[%emt 0:00:31]} d6 {[%emt 0:00:40]} 7. Nbd2 {[%emt 0:00:34]} a5 {[%emt 0:00:42]
} 8. a4 {[%emt 0:01:15]} O-O {[%emt 0:00:48]} 9. h3 {[%emt 0:01:33]} Ne7 {
[%emt 0:00:58]} 10. d4 {[%emt 0:00:58]} exd4 {[%emt 0:00:43]} 11. cxd4 {
[%emt 0:00:09]} Bb6 {[%emt 0:00:38]} 12. Re1 {[%emt 0:03:36]} Ng6 {[%emt 0:02:
54]} 13. e5 {[%emt 0:02:31]} dxe5 {[%emt 0:00:46]} 14. dxe5 {[%emt 0:00:08]}
Nd5 {[%emt 0:03:37]} 15. Ne4 {[%emt 0:01:01]} Nb4 {[%emt 0:01:18]} 16. Qb3 {
[%emt 0:02:30]} Qe7 {[%emt 0:02:15]} 17. Ng3 {[%emt 0:07:07]} Be6 {[%emt 0:03:
15]} 18. Bd2 {[%emt 0:03:01]} Qc5 {[%emt 0:02:48]} 19. Bxe6 {[%emt 0:04:47]}
Qxf2+ 20. Kh2 {[%emt 0:00:57]} Nf4 {[%emt 0:11:21]} 21. Bxf4 {[%emt 0:01:41]}
Nc2 {[%emt 0:00:23]} 22. Bc4 {[%emt 0:03:50]} Nxa1 {[%emt 0:01:26]} 23. Rxa1 {
[%emt 0:00:29]} Qc5 {[%emt 0:01:12]} 24. Re1 {[%emt 0:01:40]} Qb4 {[%emt 0:02:
43]} 25. Qc2 {[%emt 0:02:14]} Kh8 {[%emt 0:06:40]} 26. Nf5 {[%emt 0:01:18]} Qc5
{[%emt 0:03:02]} 27. Bxh6 {[%emt 0:02:07]} gxh6 28. Qc1 Qc6 {[%emt 0:03:49]}
29. e6 {[%emt 0:00:45]} Kg8 {[%emt 0:07:00]} 30. Qxh6 {[%emt 0:00:45]} Bg1+ 31.
Kh1 {[%emt 0:02:20]} 1-0